bitfinex-derivatives/quotes_ETHF0:USTF0_20250803
["timestamp","ask_amount","ask_price","bid_price","bid_amount"]
[1754195550199,1.7895,3439.0,3438.9,2.56103115]
[1754195553596,1.7895,3439.0,3438.9,2.88933115]
[1754195553901,0.3139,3439.7,3439.2,1.0665]
[1754195554101,0.7459,3439.7,3439.6,1.8233]
[1754195554506,1.0644,3439.7,3439.6,1.8233]
[1754195555008,1.8214,3439.7,3439.6,1.8233]
[1754195555204,1.8214,3439.7,3439.6,1.495]
[1754195555602,1.8214,3439.7,3439.6,1.8233]
[1754195555798,5.0292,3440.2,3439.9,0.7568]
[1754195556000,0.7304,3440.0,3439.9,0.4507]
[1754195556296,1.8214,3440.0,3439.9,0.4507]
[1754195557503,1.8214,3440.0,3439.9,0.7754]
[1754195558400,3.68600019,3440.0,3439.7,0.3061]
[1754195558706,3.68600019,3440.0,3438.9,6.11923134]
[1754195558707,1.8214,3439.1,3439.0,1.31983]
[1754195558898,1.8214,3439.1,3439.0,0.7382]
[1754195559299,1.8214,3439.1,3439.0,1.495]
[1754195561605,1.8214,3439.0,3438.9,1.04683115]
[1754195561802,1.8214,3439.0,3438.9,2.23573115]
[1754195562003,1.8214,3439.0,3438.9,2.54183115]
[1754195562506,1.8214,3439.0,3438.9,1.57963115]
[1754195562808,1.8214,3439.0,3438.9,1.04683115]
[1754195563802,5.0292,3439.0,3438.9,1.04683115]
[1754195567003,1.0644,3438.2,3438.1,1.8233]
[1754195567207,2.92900019,3438.2,3438.1,0.5301]
[1754195567507,0.7459,3438.1,3438.0,1.5172]
[1754195567808,1.0644,3438.1,3438.0,1.8233]
[1754195569207,0.3139,3438.0,3437.9,0.3247]
[1754195569404,1.0644,3438.0,3437.9,1.3091]
[1754195569604,1.0644,3438.0,3437.9,1.8233]
[1754195569906,1.0644,3438.0,3437.9,1.3091]
[1754195570110,1.0644,3438.0,3437.9,1.8233]
[1754195570706,0.432,3438.0,3437.5,0.4507]
[1754195571015,1.0644,3437.6,3437.5,1.8233]
[1754195572017,0.7505,3437.9,3437.8,0.7382]
[1754195572205,0.7505,3437.9,3437.8,1.8233]
[1754195572606,1.0644,3437.9,3437.8,1.8233]
[1754195573414,2.92900019,3437.9,3437.8,1.8233]
[1754195575518,2.92900019,3437.9,3437.8,1.5172]
[1754195576618,6.13680019,3437.9,3437.8,1.8233]
[1754195578330,6.13680019,3437.9,3437.8,0.2054]
[1754195578526,1.0644,3437.4,3437.3,5.0311]
[1754195579121,0.3185,3437.7,3437.4,0.58191]
[1754195579326,0.7505,3437.8,3437.7,1.8233]
[1754195579526,1.0644,3437.8,3437.7,1.8233]
[1754195580433,0.432,3437.5,3437.4,0.7382]
[1754195580630,0.7459,3437.5,3437.4,0.7382]
[1754195580934,3.6398,3437.9,3437.8,1.8233]
[1754195581828,3.2078,3437.9,3437.8,1.8233]
[1754195582029,0.7513,3438.4,3438.3,0.7213]
[1754195582225,0.7521,3438.4,3438.3,1.8294]
[1754195582629,1.0507,3438.4,3438.3,1.8294]
[1754195582830,3.2078,3438.5,3438.3,1.30305]
[1754195583131,3.2078,3438.5,3438.4,1.8294]
[1754195583438,4.2585,3438.5,3438.4,1.8294]
[1754195583832,3.9301,3438.5,3438.4,1.8294]
[1754195584635,4.2585,3438.5,3438.4,1.8294]
[1754195588932,4.2599,3438.5,3438.4,1.8294]
[1754195589934,4.2599,3438.5,3438.4,0.303]
[1754195590132,0.4249,3438.3,3438.2,1.282]
[1754195590335,2.91570019,3438.3,3438.2,1.282]
[1754195591037,2.91570019,3438.3,3438.2,1.8294]
[1754195592630,0.542,3438.0,3437.9,1.1752]
[1754195592834,2.91570019,3438.0,3437.9,0.303]
[1754195593232,2.91570019,3438.0,3437.9,1.0824]
[1754195593435,2.91570019,3438.0,3437.9,1.282]
[1754195596535,2.91570019,3438.0,3437.9,1.6107]
[1754195598944,2.91570019,3438.0,3437.9,1.8294]
[1754195600442,1.0511,3437.9,3437.8,0.7213]
[1754195600643,1.0511,3437.9,3437.8,1.8294]
[1754195604355,1.0511,3437.9,3437.8,1.1752]
[1754195605350,1.0511,3437.9,3437.8,1.8294]
[1754195607457,1.00674,3437.8,3437.7,0.5026]
[1754195607649,1.00674,3437.8,3437.7,1.6107]
[1754195608045,1.00674,3437.8,3437.7,1.8294]
[1754195608250,1.63294,3437.8,3437.7,1.8294]
[1754195608654,0.4237,3437.5,3437.4,0.7213]
[1754195608853,2.07780019,3438.0,3437.9,0.7213]
[1754195609055,1.5819413,3438.0,3437.9,1.05]
[1754195609257,1.5831413,3438.0,3437.9,1.8294]
[1754195609447,1.9107413,3438.0,3437.9,1.8294]
[1754195609648,1.0511,3438.0,3437.9,1.8294]
[1754195609948,1.63291,3438.0,3437.9,1.8294]
[1754195611556,1.63391,3438.0,3437.9,1.8294]
[1754195618570,1.91223449,3438.0,3437.9,1.8294]
[1754195619863,1.91103449,3438.0,3437.9,1.8294]
[1754195620755,1.91137608,3438.0,3437.9,1.8294]
[1754195622065,0.4244,3437.6,3437.5,1.0243]
[1754195622262,1.0299,3437.6,3437.5,1.8022]
[1754195622559,0.7215,3437.6,3437.5,1.8022]
[1754195622765,0.7296,3437.8,3437.7,0.7165]
[1754195622972,1.0283,3437.8,3437.7,1.8022]
[1754195627469,1.8895229,3437.8,3437.7,1.8022]
[1754195627665,1.8895242,3437.8,3437.7,1.8022]
[1754195628371,3.75572439,3437.8,3437.7,0.9873]
[1754195628561,3.75572439,3437.8,3437.7,1.2951]
[1754195628761,3.75572439,3437.8,3437.7,1.8022]
[1754195629164,2.89450019,3437.8,3437.7,1.8022]
[1754195630671,3.8133,3438.0,3437.7,1.8022]
[1754195630975,1.16009982,3437.9,3437.8,1.8022]
[1754195631466,0.86139982,3437.9,3437.8,1.8022]
[1754195634575,1.58289982,3437.9,3437.8,1.8022]
[1754195635478,1.88969982,3437.9,3437.8,1.8022]
[1754195635775,1.58289982,3437.9,3437.8,1.8022]
[1754195637175,1.88969982,3437.9,3437.8,1.8022]
[1754195638473,2.47311982,3437.9,3437.8,0.5101]
[1754195638678,1.89129982,3437.9,3437.8,1.2951]
[1754195638879,1.89129982,3437.9,3437.8,1.5958]
[1754195639178,1.89129982,3437.9,3437.8,1.8022]
[1754195640278,1.88969982,3437.9,3437.8,1.8022]
[1754195640982,1.89129982,3437.9,3437.8,1.5958]
[1754195641280,2.47312982,3437.9,3437.8,1.8022]
[1754195642576,2.47312982,3437.9,3437.4,0.5819]
[1754195642772,3.78420001,3437.8,3437.7,1.8104]
[1754195643277,3.78420001,3437.8,3437.3,1.8104]
[1754195643278,1.0568,3437.4,3437.3,1.8104]
[1754195643784,1.0582,3437.4,3437.3,1.2853]
[1754195643981,1.0582,3437.4,3437.3,0.3096]
[1754195644377,1.0582,3437.4,3437.3,0.7573]
[1754195644577,1.0582,3437.4,3437.3,1.0738]
[1754195645275,1.0582,3437.4,3437.3,1.2853]
[1754195645779,1.0582,3437.4,3437.3,1.6046]
[1754195647479,1.0568,3436.9,3436.8,1.8104]
[1754195647978,0.7451,3436.9,3436.8,1.8104]
[1754195648779,1.0568,3436.9,3436.8,1.8104]
[1754195649168,0.7451,3436.9,3436.8,1.8104]
[1754195650080,1.0568,3436.9,3436.8,1.8104]
[1754195653688,0.4214,3436.9,3436.8,1.8104]
[1754195653883,1.0582,3436.9,3436.8,1.2853]
[1754195654089,1.0582,3436.9,3436.8,0.9688]
[1754195654289,1.0582,3436.9,3436.8,1.2853]
[1754195654591,1.0582,3436.9,3436.8,1.6046]
[1754195654784,1.64019,3436.9,3436.8,1.6046]
[1754195656680,0.58205,3436.6,3435.9,4.25554517]
[1754195656986,0.5311,3436.4,3436.3,0.5154]
[1754195657190,1.0568,3436.4,3436.3,0.7269]
[1754195657377,1.0568,3436.4,3436.3,1.4911]
[1754195657582,1.0568,3436.4,3436.3,1.8104]
[1754195658184,1.0582,3436.4,3436.3,1.8104]
[1754195659195,0.3237,3436.3,3435.9,1.49544517]
[1754195659498,4.2647,3436.4,3436.3,1.8104]
[1754195660102,1.0569,3436.4,3436.3,1.8104]
[1754195660993,0.3237,3436.6,3436.3,1.8104]
[1754195661291,0.3237,3436.5,3436.4,1.8104]
[1754195661494,5.39610019,3436.8,3436.4,0.7269]
[1754195661792,0.58202,3436.7,3436.5,1.0835]
[1754195661992,1.0569,3436.1,3436.0,1.8104]
[1754195662194,1.0569,3436.6,3436.5,1.4911]
[1754195662388,1.0585,3436.6,3436.5,1.8104]
[1754195662590,0.7451,3436.6,3436.5,1.8104]
[1754195662787,0.5311,3436.6,3436.5,1.8104]
[1754195662983,0.7451,3436.6,3436.5,1.8104]
[1754195663182,5.38420019,3436.8,3435.9,4.25554517]
[1754195663183,3.2078,3436.8,3436.7,2.07592]
[1754195663388,3.4218,3437.3,3437.2,0.7269]
[1754195663600,4.2663,3437.3,3437.2,1.8104]
[1754195665893,4.84822,3437.3,3437.2,1.8104]
[1754195666495,4.2663,3437.3,3437.2,1.8104]
[1754195667492,4.2663,3437.3,3436.1,0.4477]
[1754195667493,0.3108,3437.1,3436.1,0.4477]
[1754195667697,3.7326,3437.1,3437.0,1.1746]
[1754195668502,3.2078,3437.1,3437.0,1.1746]
[1754195668695,3.5186,3437.1,3437.0,1.1746]
[1754195668894,4.1683,3437.1,3437.0,0.9631]
[1754195669489,4.1683,3437.1,3437.0,1.2824]
[1754195670296,0.7322,3436.6,3436.5,1.4939]
[1754195670595,2.82510019,3436.6,3436.5,1.4939]
[1754195671387,2.59680019,3436.6,3436.5,0.7573]
[1754195671596,2.28600019,3436.6,3436.2,0.8917]
[1754195671794,0.4168,3436.4,3436.3,1.4814]
[1754195671993,0.9576,3436.4,3436.3,1.2714]
[1754195672195,0.9576,3436.4,3436.0,0.3015]
[1754195672196,0.2014,3436.1,3436.0,0.3015]
[1754195672394,2.82220019,3436.1,3436.0,0.3015]
[1754195672602,2.82220019,3436.1,3436.0,1.0704]
[1754195672791,2.82220019,3436.1,3436.0,1.2714]
[1754195672991,0.9576,3436.1,3436.0,1.2714]
[1754195673798,0.5276,3436.1,3436.0,1.4814]
[1754195674201,0.9576,3436.1,3436.0,1.4814]
[1754195676999,0.5276,3436.1,3436.0,1.4814]
[1754195677200,0.3122,3436.1,3436.0,1.7018]
[1754195677401,0.5276,3436.1,3436.0,1.7018]
[1754195677904,0.5276,3436.1,3436.0,1.4814]
[1754195678200,0.5276,3436.1,3436.0,1.7018]
[1754195678802,3.52,3436.7,3436.0,0.9894]
[1754195679001,3.7354,3436.7,3436.6,1.4814]
[1754195679295,6.03000019,3436.7,3436.6,1.4814]
[1754195679701,5.80140019,3436.7,3436.6,1.4814]
[1754195679902,6.03000019,3436.7,3436.6,1.2714]
[1754195681302,0.2014,3436.4,3436.3,0.97]
[1754195681498,0.3122,3436.4,3436.3,1.7018]
[1754195681902,0.5276,3436.4,3436.3,1.7018]
[1754195682703,0.5276,3436.4,3436.3,1.4814]
[1754195683607,0.9576,3436.4,3436.3,1.4814]
[1754195684007,0.9576,3436.4,3436.3,0.9789]
[1754195684204,0.7422,3436.3,3436.0,1.0704]
[1754195684409,0.9576,3436.1,3436.0,1.2714]
[1754195684610,2.82220019,3436.1,3436.0,1.2714]
[1754195684909,0.9576,3436.1,3436.0,1.2714]
[1754195685212,0.9576,3436.1,3436.0,1.4814]
[1754195686711,0.9576,3436.1,3435.9,1.04774517]
[1754195686712,0.9576,3436.0,3435.9,2.01764517]
[1754195687309,0.9576,3436.0,3435.9,1.04774517]
[1754195687703,0.4168,3435.4,3435.3,0.8039]
[1754195688012,2.82220019,3435.4,3435.3,1.2714]
[1754195688410,0.5136,3435.3,3435.2,1.2714]
[1754195688654,0.729,3435.3,3435.2,1.2714]
[1754195689114,0.9576,3435.3,3435.2,1.2714]
[1754195689612,0.729,3435.3,3435.2,1.792]
[1754195689910,0.5276,3435.3,3435.2,1.792]
[1754195690411,0.729,3435.3,3435.2,1.792]
[1754195690605,0.9576,3435.3,3435.2,1.792]
[1754195691716,0.9576,3435.3,3435.2,1.4814]
[1754195692214,2.82220019,3435.3,3435.2,1.4814]
[1754195692714,2.82220019,3435.3,3435.2,1.792]
[1754195693713,2.82220019,3435.3,3435.2,1.4814]
[1754195694112,0.5276,3435.3,3435.2,1.792]
[1754195694613,2.59360019,3435.3,3435.2,1.792]
[1754195694813,2.82220019,3435.3,3435.2,1.792]
[1754195695214,2.82220019,3435.3,3435.2,1.4814]
[1754195696013,0.9576,3435.3,3435.2,1.4814]
[1754195697013,0.9576,3435.3,3435.2,1.792]
[1754195699319,1.86460019,3435.4,3435.2,1.792]
[1754195699525,2.39220019,3435.4,3435.3,1.792]
[1754195699825,2.59360019,3435.4,3435.3,1.792]
[1754195700018,2.82220019,3435.4,3435.3,1.792]
[1754195700319,3.2078,3435.6,3435.5,1.792]
[1754195700525,2.39220019,3436.0,3435.9,1.792]
[1754195701628,0.729,3436.0,3435.9,1.792]
[1754195701831,0.9576,3436.0,3435.9,1.792]
[1754195702024,0.729,3436.0,3435.9,1.4814]
[1754195702332,0.9576,3436.0,3435.9,0.5024]
[1754195702518,0.4291,3435.4,3435.3,1.0316]
[1754195702828,0.5324,3435.4,3435.3,1.8337]
[1754195705128,0.2136,3435.7,3435.6,0.4095]
[1754195705427,20.1496,3436.0,3435.9,0.7154]
[1754195705630,20.1496,3436.0,3435.7,1.1183]
[1754195705631,3.2078,3436.2,3436.1,1.8337]
[1754195705934,0.5324,3436.4,3436.3,1.8337]
[1754195706228,2.1874482,3436.4,3436.3,1.8337]
[1754195706426,0.9765,3436.4,3436.3,1.8337]
[1754195707126,2.84110019,3436.4,3436.3,1.8337]
[1754195707327,2.84110019,3436.4,3436.3,1.515]
[1754195707633,2.84110019,3436.4,3436.3,0.9941]
[1754195707826,2.84110019,3436.4,3436.3,1.3103]
[1754195708129,2.84110019,3436.4,3436.3,1.515]
[1754195708531,0.2136,3436.0,3435.9,1.515]
[1754195708831,0.5324,3436.0,3435.9,1.8337]
[1754195711225,0.2136,3436.0,3435.9,1.8337]
[1754195713129,0.5324,3436.0,3435.9,1.8337]
[1754195713323,0.9765,3436.0,3435.9,0.8268]
[1754195713526,0.9765,3436.0,3435.9,1.3102]
[1754195714028,0.9765,3436.0,3435.9,1.515]
[1754195715031,0.3188,3435.9,3435.4,0.58224]
[1754195715235,0.9765,3435.5,3435.4,2.41594]
[1754195715935,2.84110019,3435.8,3435.7,2.09719]
[1754195716233,2.84110019,3435.8,3435.7,1.8337]
[1754195716425,2.84110019,3435.8,3435.7,1.515]
[1754195719729,2.84110019,3435.8,3435.7,1.8337]
[1754195719928,0.5324,3435.8,3435.7,1.8337]
[1754195720135,19.936,3435.9,3435.8,1.8337]
[1754195720335,0.3188,3436.0,3435.8,1.8337]
[1754195720633,20.4684,3436.0,3435.9,1.8337]
[1754195721538,22.77710019,3436.0,3435.9,1.8337]
[1754195721734,22.77710019,3436.0,3435.9,1.515]
[1754195722238,0.4291,3435.7,3435.6,1.8337]
[1754195722536,0.9765,3435.7,3435.6,1.8337]
[1754195723237,2.84110019,3435.7,3435.6,1.0316]
[1754195723437,2.84110019,3435.7,3435.6,0.8268]
[1754195723834,2.84110019,3435.7,3435.6,1.3102]
[1754195724430,2.84110019,3435.7,3435.6,1.515]
[1754195724834,2.84110019,3435.7,3435.6,1.8337]
[1754195725439,2.84110019,3435.7,3435.6,1.515]
[1754195726236,2.84110019,3435.7,3435.1,0.58229]
[1754195726237,0.2136,3435.2,3435.1,0.7154]
[1754195726437,0.5324,3435.2,3435.1,0.7154]
[1754195726829,0.5324,3435.2,3435.1,1.8337]
[1754195727034,0.2136,3435.3,3435.2,0.7996]
[1754195727235,0.9765,3435.3,3435.2,1.515]
[1754195728130,0.9765,3435.3,3434.8,3.2078]
[1754195728326,0.79778,3435.2,3435.1,1.515]
[1754195728531,0.4291,3435.2,3435.1,1.515]
[1754195728839,0.9752,3435.2,3435.1,1.515]
[1754195729837,0.7479,3435.2,3435.1,1.8337]
[1754195730140,0.5324,3435.2,3435.1,1.8337]
[1754195731241,0.7479,3435.2,3435.1,1.8337]
[1754195731542,0.9752,3435.2,3435.1,1.8337]
[1754195732644,0.7479,3435.2,3435.1,1.8337]
[1754195733035,0.5324,3435.2,3435.1,1.8337]
[1754195734045,0.9658,3435.2,3435.1,1.8337]
[1754195734647,0.9759,3435.2,3435.1,1.0385]
[1754195734845,0.9759,3435.2,3435.1,1.5314]
[1754195735349,0.9759,3435.2,3435.1,1.8328]
[1754195735843,0.9759,3435.2,3435.1,1.5314]
[1754195736143,0.58233,3434.9,3434.8,4.0332]
[1754195736345,2.82580019,3434.9,3434.8,4.5261]
[1754195736746,2.82580019,3434.9,3434.8,4.7392]
[1754195738948,2.82580019,3434.9,3434.8,1.5314]
[1754195739549,2.82580019,3434.9,3434.8,0.3106]
[1754195740042,3.40814019,3434.9,3434.6,1.118]
[1754195740250,0.9612,3434.8,3434.7,0.3145]
[1754195740743,0.405,3434.6,3434.5,1.5314]
[1754195740948,0.405,3434.4,3434.3,3.79023]
[1754195741144,0.9612,3434.4,3434.3,4.7392]
[1754195741343,0.9612,3434.4,3434.3,1.5314]
[1754195741539,0.9612,3434.3,3434.2,0.3106]
[1754195741843,0.9612,3434.3,3434.2,1.3183]
[1754195742047,0.9612,3434.3,3434.2,1.5314]
[1754195742547,0.58241,3434.5,3434.2,0.724]
[1754195742548,0.3289,3434.5,3434.2,0.724]
[1754195742746,0.5278,3434.4,3434.3,1.8328]
[1754195742949,0.9612,3434.4,3434.3,1.8328]
[1754195743844,3.4139,3434.6,3434.5,0.5109]
[1754195744050,3.6128,3434.6,3434.5,1.5314]
[1754195744349,3.6128,3434.6,3434.5,1.8328]
[1754195744548,4.169,3434.6,3434.5,1.8328]
[1754195744948,4.169,3434.6,3434.5,1.5314]
[1754195745451,4.169,3434.6,3434.5,0.3106]
[1754195745750,0.405,3434.4,3434.3,1.5314]
[1754195745938,2.82580019,3434.4,3434.3,1.5314]
[1754195746141,2.82580019,3434.4,3434.3,1.8328]
[1754195747454,0.1989,3434.1,3434.0,1.58987]
[1754195747651,0.5278,3434.1,3434.0,2.10077]
[1754195748055,0.5278,3434.1,3434.0,2.41527]
[1754195748257,0.5278,3434.1,3434.0,1.8328]
[1754195749846,0.7551,3434.1,3434.0,1.8328]
[1754195751243,0.9612,3434.1,3434.0,1.8328]
[1754195752754,3.40826019,3434.1,3434.0,1.5314]
[1754195752954,3.2078,3434.6,3434.5,0.3106]
[1754195753150,1.86460019,3435.2,3434.3,3.2078]
[1754195753454,0.405,3434.6,3434.5,1.5183]
[1754195753648,0.405,3434.6,3434.5,1.0254]
[1754195753851,4.169,3434.6,3434.5,1.0254]
[1754195754244,4.169,3434.6,3434.5,1.3399]
[1754195754448,6.03360019,3434.6,3434.5,1.8328]
[1754195757053,5.80630019,3434.6,3434.5,1.8328]
[1754195760449,3.9417,3434.6,3434.5,1.8328]
[1754195761458,4.169,3434.6,3434.5,1.8328]
[1754195761757,23.1678,3434.6,3434.5,1.8328]
[1754195762755,23.4859,3434.6,3434.5,1.8328]
[1754195763156,23.6965,3434.6,3434.5,1.8328]
[1754195764462,3.4184,3435.2,3435.1,0.7202]
[1754195764663,24.55590391,3435.2,3435.1,1.8259]
[1754195764956,23.1668,3435.2,3435.1,1.8259]
[1754195765755,3.2078,3435.2,3435.1,1.8259]
[1754195765956,23.1648,3435.2,3435.1,1.8259]
[1754195766260,23.3754,3435.2,3435.1,1.8259]
[1754195766459,23.6935,3435.2,3435.1,1.8259]
[1754195766662,24.147,3435.2,3435.1,1.8259]
[1754195767263,23.9364,3435.2,3434.5,0.5824]
[1754195767459,0.9443,3435.1,3435.0,1.1818]
[1754195767665,0.9443,3435.1,3435.0,1.5031]
[1754195767859,1.487,3435.1,3435.0,0.2021]
[1754195768060,0.5287,3434.7,3434.6,1.56207]
[1754195768267,3.35160019,3434.7,3434.6,1.1818]
[1754195768566,3.58050019,3434.7,3434.6,1.8259]
[1754195770363,1.487,3434.7,3434.6,1.8259]
[1754195770567,19.968,3434.9,3434.8,1.8259]
[1754195771262,20.4967,3434.9,3434.8,1.8259]
[1754195771464,19.968,3434.9,3434.8,1.8259]
[1754195771867,3.7365,3435.2,3435.1,1.8259]
[1754195772066,24.56497963,3435.2,3435.1,1.8259]
[1754195772267,20.4957,3435.2,3435.1,1.8259]
[1754195772663,20.9492,3435.2,3435.1,1.8259]
[1754195773066,20.4957,3435.2,3435.1,1.8259]
[1754195773972,19.965,3435.2,3435.1,1.8259]
[1754195776364,3.4184,3435.6,3435.5,0.7202]
[1754195776673,24.16,3435.6,3435.5,1.8259]
[1754195776874,4.19,3435.6,3435.5,1.8259]
[1754195778075,4.9237,3435.6,3435.5,1.8259]
[1754195779377,4.19,3435.6,3435.5,1.8259]
[1754195779875,4.9237,3435.6,3435.5,1.8259]
[1754195782587,4.9237,3435.6,3435.5,0.836]
[1754195783375,4.9237,3435.6,3435.5,1.5046]
[1754195786384,0.2106,3435.1,3435.0,1.30251]
[1754195786583,20.1719,3435.5,3435.0,1.30251]
[1754195786781,0.3181,3435.2,3435.0,1.30251]
[1754195787081,0.3181,3435.2,3435.1,1.8259]
[1754195788189,0.5287,3435.2,3435.1,1.8259]
[1754195789286,0.9822,3435.2,3435.1,1.8259]
[1754195791080,3.58050019,3435.2,3435.1,1.043]
[1754195791590,3.58050019,3435.2,3435.1,1.5046]
[1754195792484,3.58050019,3435.2,3435.1,0.836]
[1754195792787,3.58050019,3435.2,3435.1,1.2978]
[1754195792987,3.58050019,3435.2,3435.1,1.5079]
[1754195795587,3.58050019,3435.2,3435.1,1.8317]
[1754195797990,1.7159,3435.2,3435.1,1.8317]
[1754195798781,1.2796,3435.2,3435.1,1.8317]
[1754195798988,0.2106,3435.2,3435.1,1.8317]
[1754195799891,0.9793,3435.2,3435.1,1.8317]
[1754195800695,21.662,3435.5,3435.4,1.8421]
[1754195806497,22.52524605,3435.5,3435.4,1.8421]
[1754195807498,2.35374605,3435.5,3435.4,1.8421]
[1754195807700,21.3925,3435.5,3435.4,1.8421]
[1754195808606,21.621,3435.5,3435.4,1.8421]
[1754195813601,22.48418362,3435.5,3435.4,1.8421]
[1754195825613,22.25568362,3435.5,3435.4,1.8421]
[1754195826007,22.48438362,3435.5,3435.4,1.8421]
[1754195826311,2.58238362,3435.5,3435.4,1.8421]
[1754195826500,22.45938362,3435.5,3435.4,1.8421]
[1754195828414,22.45938362,3435.5,3435.4,1.5183]
[1754195828913,22.45938362,3435.5,3435.4,1.8339]
[1754195829416,2.58238362,3435.5,3435.4,1.8339]
[1754195829611,22.45938362,3435.5,3435.4,1.8339]
[1754195832709,2.58238362,3435.5,3435.4,1.8339]
[1754195832911,22.45938362,3435.5,3435.4,1.8339]
[1754195834517,22.45838362,3435.5,3435.4,1.8339]
[1754195847120,0.86318362,3435.5,3435.4,1.8339]
[1754195847322,20.73818362,3435.5,3435.4,1.8339]
[1754195847523,21.25238362,3435.5,3435.4,1.8339]
[1754195847727,21.72878362,3435.5,3435.4,1.8339]
[1754195848730,21.95748362,3435.5,3435.4,1.8339]
[1754195850028,22.27068362,3435.5,3435.4,1.8339]
[1754195851431,2.39568362,3435.5,3435.4,1.8339]
[1754195851633,22.26968362,3435.5,3435.4,1.8339]
[1754195852132,2.39568362,3435.5,3435.4,1.8339]
[1754195852432,21.25138362,3435.5,3435.4,1.8339]
[1754195854135,1.37738362,3435.5,3435.4,1.8339]
[1754195857044,2.58098362,3435.5,3435.4,1.8339]
[1754195863346,0.86318362,3435.5,3435.4,1.8339]
[1754195863646,0.8883,3436.0,3435.9,1.8398]
[1754195863841,0.86215819,3436.0,3435.9,2.90814674]
[1754195864145,1.52175819,3436.0,3435.9,1.5098]
[1754195864347,1.5065,3436.0,3435.9,1.8398]
[1754195865051,0.9626,3436.0,3435.9,1.8398]
[1754195869150,0.7317,3435.8,3435.7,3.5278]
[1754195869352,3.11304674,3435.8,3435.7,3.5278]
[1754195869554,3.11304674,3435.8,3435.7,3.9828]
[1754195870754,1.7147,3435.8,3435.7,3.9828]
[1754195871254,1.7147,3435.8,3435.7,4.1919]
[1754195872551,4.16115504,3435.8,3435.7,3.2078]
[1754195875062,1.7147,3435.8,3435.7,4.055]
[1754195875253,1.7147,3435.8,3435.7,5.0476]
[1754195877159,0.983,3436.2,3436.1,0.7348]
[1754195877353,2.57491835,3436.2,3436.1,1.8398]
[1754195878456,2.57491835,3436.2,3436.1,1.5098]
[1754195881255,0.7317,3435.6,3435.5,0.8472]
[1754195881461,1.7147,3435.6,3435.5,0.8472]
[1754195881763,1.7147,3435.6,3435.5,1.5389]
[1754195882060,1.7147,3435.6,3435.5,1.8675]
[1754195883256,0.7166,3436.0,3435.9,1.3084]
[1754195883457,1.29875,3436.0,3435.4,0.58224]
[1754195883664,1.7314,3435.8,3435.7,1.2012]
[1754195883855,1.7314,3435.8,3435.7,1.5298]
[1754195884255,1.7314,3435.8,3435.7,1.8458]
[1754195885556,1.7314,3435.8,3435.7,1.3617]
[1754195885863,1.7314,3435.8,3435.7,1.8458]
[1754195886567,1.7314,3435.8,3435.7,0.8297]
[1754195887066,1.7314,3435.7,3435.6,0.7171]
[1754195887259,1.7314,3435.7,3435.6,1.8458]
[1754195887458,1.7314,3435.7,3435.6,1.5172]
[1754195890558,1.7314,3435.7,3435.6,1.8458]
[1754195891765,1.503,3435.7,3435.6,1.8458]
[1754195892065,0.2031,3435.7,3435.6,1.8458]
[1754195892268,0.9895,3435.7,3435.6,1.8458]
[1754195892454,3.2078,3436.3,3435.6,1.8458]
[1754195892659,2.59229465,3436.2,3436.1,1.8458]
[1754195892858,2.59229465,3436.2,3436.1,1.5172]
[1754195894666,2.59229465,3436.2,3436.1,1.8458]
[1754195899068,0.86089465,3436.2,3436.1,1.5172]
[1754195899271,1.36979465,3436.2,3436.1,1.8458]
[1754195899472,0.86089465,3436.2,3436.1,1.8458]
[1754195899774,1.36979465,3436.2,3436.1,1.8458]
[1754195900967,0.86089465,3436.2,3436.1,1.8458]
[1754195901870,0.3058,3436.2,3436.1,1.8458]
[1754195902070,0.5089,3436.2,3436.1,0.7171]
[1754195902277,1.2179,3436.2,3436.1,0.7171]
[1754195902570,1.5209,3436.2,3436.1,1.8458]
[1754195902776,1.5209,3436.2,3436.1,1.5172]
[1754195902777,1.7314,3436.2,3436.1,1.5172]
[1754195903177,2.59212704,3436.2,3436.1,1.8458]
[1754195904466,0.7166,3435.9,3435.8,0.9924]
[1754195904676,1.7314,3435.9,3435.8,0.8297]
[1754195904979,2.59193719,3435.9,3435.8,0.316]
[1754195906070,2.59193719,3435.9,3435.6,0.4841]
[1754195906071,1.59698,3435.8,3435.7,0.316]
[1754195906269,2.31358,3435.8,3435.7,0.316]
[1754195908780,2.31358,3435.8,3435.7,0.8001]
[1754195908975,1.7314,3435.8,3435.7,0.8001]
[1754195909280,2.59190489,3435.8,3435.7,1.0089]
[1754195909674,2.59190489,3435.8,3435.7,1.3138]
[1754195909876,2.59190489,3435.8,3435.7,1.5172]
[1754195910072,2.59190489,3435.8,3435.7,1.5298]
[1754195910272,2.59190489,3435.8,3435.7,1.8458]
[1754195910881,1.503,3435.8,3435.7,1.8458]
[1754195911178,0.5089,3435.8,3435.7,1.8458]
[1754195911379,3.742,3436.0,3435.7,1.8458]
[1754195911683,3.4227,3436.0,3435.9,0.7382]
[1754195911879,5.06823134,3436.0,3435.9,1.8873]
[1754195912082,5.29693134,3436.0,3435.9,1.8873]
[1754195912377,5.61453134,3436.0,3435.9,1.8873]
[1754195912574,0.86053134,3436.0,3435.9,1.8873]
[1754195912774,19.865,3436.3,3435.9,0.7382]
[1754195912975,2.61351225,3436.2,3436.1,1.8873]
[1754195914183,1.7529,3435.7,3435.6,1.8873]
[1754195916890,1.3175,3435.7,3435.6,1.8873]
[1754195917784,0.5286,3435.7,3435.6,1.8873]
[1754195918981,1.5462,3435.7,3435.6,1.8873]
[1754195922285,1.3175,3435.7,3435.6,1.8873]
[1754195923789,1.5462,3435.7,3435.6,1.8873]